[Event "Titled Tuesday Blitz June 22 2021"]
[White "Kovalev, Vladislav"]
[Black "Wagner, Dennis"]
[WhiteFideId "13504398"]
[BlackFideId "24650684"]
[WhiteElo "2573"]
[BlackElo "2355"]
[Result "0-1"]
[Round "04"]
[TimeControl "180+1"]
[Date "2021.06.22"]
[WhiteClock "0:00:01"]
[BlackClock "0:00:21"]

1. e4 {[%clk 0:02:58]}  e5 {[%clk 0:02:56]} 2. Nf3 {[%clk 0:02:58]}  Nc6 {[%clk 0:02:56]} 3. Bb5 {[%clk 0:02:56]}  a6 {[%clk 0:02:56]} 4. Ba4 {[%clk 0:02:57]}  Nf6 {[%clk 0:02:56]} 5. O-O {[%clk 0:02:58]}  b5 {[%clk 0:02:56]} 6. Bb3 {[%clk 0:02:58]}  Bc5 {[%clk 0:02:56]} 7. c3 {[%clk 0:02:52]}  d6 {[%clk 0:02:57]} 8. a4 {[%clk 0:02:53]}  Rb8 {[%clk 0:02:56]} 9. d4 {[%clk 0:02:51]}  Bb6 {[%clk 0:02:56]} 10. Be3 {[%clk 0:02:43]}  O-O {[%clk 0:02:55]} 11. axb5 {[%clk 0:02:41]}  axb5 {[%clk 0:02:55]} 12. Na3 {[%clk 0:02:42]}  Bg4 {[%clk 0:02:50]} 13. Nxb5 {[%clk 0:02:22]}  Re8 {[%clk 0:02:50]} 14. Re1 {[%clk 0:01:57]}  exd4 {[%clk 0:02:43]} 15. Nbxd4 {[%clk 0:01:57]}  Nxd4 {[%clk 0:02:42]} 16. Bxd4 {[%clk 0:01:57]}  Bxd4 {[%clk 0:02:21]} 17. cxd4 {[%clk 0:01:58]}  Nxe4 {[%clk 0:02:12]} 18. Ba4 {[%clk 0:01:50]}  Re7 {[%clk 0:01:57]} 19. Bc6 {[%clk 0:01:48]}  d5 {[%clk 0:01:50]} 20. h3 {[%clk 0:01:45]}  Bxf3 {[%clk 0:01:27]} 21. Qxf3 {[%clk 0:01:46]}  Qd6 {[%clk 0:01:25]} 22. Rec1 {[%clk 0:01:08]}  g6 {[%clk 0:01:23]} 23. Rc2 {[%clk 0:01:06]}  Rb4 {[%clk 0:01:15]} 24. Qe3 {[%clk 0:00:51]}  Kg7 {[%clk 0:00:53]} 25. Qd3 {[%clk 0:00:35]}  h5 {[%clk 0:00:46]} 26. g3 {[%clk 0:00:24]}  h4 {[%clk 0:00:38]} 27. g4 {[%clk 0:00:25]}  Ng5 {[%clk 0:00:36]} 28. Ra5 {[%clk 0:00:03]}  Qf4 {[%clk 0:00:23]} 29. Kf1 {[%clk 0:00:01]}  Nf3 {[%clk 0:00:21]} 0-1


[Site "https://www.chess.com"]

[Event "Titled Tuesday Blitz June 22 2021"]
[White "Le, Tuan Minh"]
[Black "Yanchenko, Roman"]
[WhiteFideId "12401153"]
[BlackFideId "4137329"]
[WhiteElo "2450"]
[BlackElo "2514"]
[Result "0-1"]
[Round "04"]
[TimeControl "180+1"]
[Date "2021.06.22"]
[WhiteClock "0:00:01"]
[BlackClock "0:00:30"]

1. d4 {[%clk 0:03:00]}  d5 {[%clk 0:02:55]} 2. Nf3 {[%clk 0:02:59]}  c6 {[%clk 0:02:55]} 3. Bf4 {[%clk 0:02:59]}  Bf5 {[%clk 0:02:56]} 4. e3 {[%clk 0:02:59]}  e6 {[%clk 0:02:56]} 5. c4 {[%clk 0:02:59]}  Nf6 {[%clk 0:02:54]} 6. Nc3 {[%clk 0:02:58]}  Nbd7 {[%clk 0:02:54]} 7. Be2 {[%clk 0:02:43]}  Qb6 {[%clk 0:02:50]} 8. Qc1 {[%clk 0:02:40]}  Be7 {[%clk 0:02:48]} 9. O-O {[%clk 0:02:38]}  O-O {[%clk 0:02:48]} 10. h3 {[%clk 0:02:38]}  Ne4 {[%clk 0:02:46]} 11. Rd1 {[%clk 0:02:20]}  h6 {[%clk 0:02:45]} 12. Bd3 {[%clk 0:02:15]}  Nxc3 {[%clk 0:02:40]} 13. Qxc3 {[%clk 0:02:14]}  Bxd3 {[%clk 0:02:38]} 14. Rxd3 {[%clk 0:02:15]}  Rfc8 {[%clk 0:02:33]} 15. Rc1 {[%clk 0:02:11]}  Qa6 {[%clk 0:02:30]} 16. a3 {[%clk 0:01:55]}  dxc4 {[%clk 0:02:08]} 17. Qxc4 {[%clk 0:01:54]}  Qxc4 {[%clk 0:02:08]} 18. Rxc4 {[%clk 0:01:55]}  c5 {[%clk 0:02:09]} 19. dxc5 {[%clk 0:01:29]}  Nxc5 {[%clk 0:02:01]} 20. Rd1 {[%clk 0:01:19]}  b5 {[%clk 0:01:59]} 21. Rc2 {[%clk 0:00:56]}  Na4 {[%clk 0:01:57]} 22. Rxc8+ {[%clk 0:00:55]}  Rxc8 {[%clk 0:01:57]} 23. Rd7 {[%clk 0:00:56]}  Bf6 {[%clk 0:01:50]} 24. b3 {[%clk 0:00:41]}  Nc5 {[%clk 0:01:46]} 25. Rxa7 {[%clk 0:00:41]}  Nxb3 {[%clk 0:01:46]} 26. Be5 {[%clk 0:00:39]}  Rc1+ {[%clk 0:01:37]} 27. Kh2 {[%clk 0:00:40]}  Rc2 {[%clk 0:01:38]} 28. Kg3 {[%clk 0:00:35]}  Nc5 {[%clk 0:01:36]} 29. Bxf6 {[%clk 0:00:30]}  Ne4+ {[%clk 0:01:22]} 30. Kf4 {[%clk 0:00:30]}  Nxf6 {[%clk 0:01:23]} 31. Rb7 {[%clk 0:00:12]}  Rxf2 {[%clk 0:01:19]} 32. Rxb5 {[%clk 0:00:11]}  g5+ {[%clk 0:01:15]} 33. Ke5 {[%clk 0:00:08]}  Kg7 {[%clk 0:01:13]} 34. Rb7 {[%clk 0:00:06]}  g4 {[%clk 0:00:45]} 35. hxg4 {[%clk 0:00:07]}  Rxg2 {[%clk 0:00:45]} 36. Kd6 {[%clk 0:00:03]}  Nxg4 {[%clk 0:00:42]} 37. a4 {[%clk 0:00:04]}  Nxe3 {[%clk 0:00:40]} 38. Ne5 {[%clk 0:00:03]}  Nf5+ {[%clk 0:00:36]} 39. Kc5 {[%clk 0:00:02]}  Rc2+ {[%clk 0:00:35]} 40. Kb6 {[%clk 0:00:02]}  Kf6 {[%clk 0:00:32]} 41. Nd7+ {[%clk 0:00:01]}  Kg5 {[%clk 0:00:33]} 42. a5 {[%clk 0:00:01]}  Nd6 {[%clk 0:00:30]} 0-1


[Site "https://www.chess.com"]

[Event "Titled Tuesday Blitz June 22 2021"]
[White "Martinez Alcantara, Jose Eduardo"]
[Black "Milchev, Nikolay"]
[WhiteFideId "3805662"]
[BlackFideId "2906090"]
[WhiteElo "2690"]
[BlackElo "2449"]
[Result "1-0"]
[Round "04"]
[TimeControl "180+1"]
[Date "2021.06.22"]
[WhiteClock "0:00:15"]
[BlackClock "0:00:03"]

1. e4 {[%clk 0:03:00]}  e5 {[%clk 0:02:59]} 2. Nf3 {[%clk 0:03:01]}  Nc6 {[%clk 0:03:00]} 3. Bb5 {[%clk 0:03:01]}  Nge7 {[%clk 0:03:01]} 4. c3 {[%clk 0:02:59]}  a6 {[%clk 0:03:01]} 5. Ba4 {[%clk 0:03:00]}  g6 {[%clk 0:03:01]} 6. d4 {[%clk 0:03:00]}  exd4 {[%clk 0:03:02]} 7. cxd4 {[%clk 0:03:00]}  b5 {[%clk 0:03:02]} 8. Bb3 {[%clk 0:03:01]}  Bg7 {[%clk 0:03:03]} 9. O-O {[%clk 0:02:52]}  O-O {[%clk 0:03:03]} 10. d5 {[%clk 0:02:51]}  Na5 {[%clk 0:03:03]} 11. Bd2 {[%clk 0:02:46]}  Nxb3 {[%clk 0:03:01]} 12. Qxb3 {[%clk 0:02:45]}  c5 {[%clk 0:03:00]} 13. Bc3 {[%clk 0:02:43]}  d6 {[%clk 0:03:00]} 14. Bxg7 {[%clk 0:02:42]}  Kxg7 {[%clk 0:03:01]} 15. Qc3+ {[%clk 0:02:43]}  Kg8 {[%clk 0:03:01]} 16. b4 {[%clk 0:02:44]}  Qb6 {[%clk 0:02:55]} 17. Nbd2 {[%clk 0:02:39]}  Bg4 {[%clk 0:02:48]} 18. bxc5 {[%clk 0:02:32]}  dxc5 {[%clk 0:02:47]} 19. Ne5 {[%clk 0:02:30]}  Bc8 {[%clk 0:02:45]} 20. a4 {[%clk 0:02:23]}  f6 {[%clk 0:02:31]} 21. Nef3 {[%clk 0:01:42]}  Bd7 {[%clk 0:02:26]} 22. h3 {[%clk 0:01:41]}  bxa4 {[%clk 0:02:18]} 23. Rfb1 {[%clk 0:01:39]}  Bb5 {[%clk 0:02:16]} 24. Rxa4 {[%clk 0:01:37]}  Qc7 {[%clk 0:01:45]} 25. Raa1 {[%clk 0:01:34]}  f5 {[%clk 0:01:36]} 26. Ng5 {[%clk 0:01:15]}  fxe4 {[%clk 0:01:36]} 27. d6 {[%clk 0:00:19]}  Qxd6 {[%clk 0:01:32]} 28. Ndxe4 {[%clk 0:00:19]}  Qd4 {[%clk 0:01:31]} 29. Qxd4 {[%clk 0:00:18]}  cxd4 {[%clk 0:01:31]} 30. Ne6 {[%clk 0:00:19]}  Bd3 {[%clk 0:01:08]} 31. Re1 {[%clk 0:00:17]}  Rfb8 {[%clk 0:00:39]} 32. N4c5 {[%clk 0:00:16]}  Bc4 {[%clk 0:00:35]} 33. Nc7 {[%clk 0:00:16]}  Nf5 {[%clk 0:00:33]} 34. Nxa8 {[%clk 0:00:16]}  Rxa8 {[%clk 0:00:33]} 35. Rec1 {[%clk 0:00:12]}  Bb5 {[%clk 0:00:33]} 36. Rcb1 {[%clk 0:00:13]}  Rd8 {[%clk 0:00:27]} 37. Nxa6 {[%clk 0:00:12]}  Bxa6 {[%clk 0:00:28]} 38. Rxa6 {[%clk 0:00:13]}  d3 {[%clk 0:00:29]} 39. Ra2 {[%clk 0:00:10]}  Nd4 {[%clk 0:00:28]} 40. Rd2 {[%clk 0:00:09]}  Ne2+ {[%clk 0:00:27]} 41. Kf1 {[%clk 0:00:06]}  Nc3 {[%clk 0:00:22]} 42. Re1 {[%clk 0:00:06]}  Kf7 {[%clk 0:00:19]} 43. Re3 {[%clk 0:00:03]}  Rb8 {[%clk 0:00:19]} 44. Rdxd3 {[%clk 0:00:03]}  Rb1+ {[%clk 0:00:19]} 45. Re1 {[%clk 0:00:04]}  Rxe1+ {[%clk 0:00:19]} 46. Kxe1 {[%clk 0:00:05]}  Ne4 {[%clk 0:00:20]} 47. Re3 {[%clk 0:00:05]}  Nc5 {[%clk 0:00:18]} 48. g3 {[%clk 0:00:06]}  h5 {[%clk 0:00:18]} 49. Ke2 {[%clk 0:00:07]}  Kf6 {[%clk 0:00:18]} 50. h4 {[%clk 0:00:07]}  Kf5 {[%clk 0:00:17]} 51. Rf3+ {[%clk 0:00:08]}  Ke6 {[%clk 0:00:17]} 52. Re3+ {[%clk 0:00:08]}  Kf5 {[%clk 0:00:17]} 53. Kf3 {[%clk 0:00:09]}  Nd7 {[%clk 0:00:15]} 54. Kg2 {[%clk 0:00:10]}  Ne5 {[%clk 0:00:15]} 55. Ra3 {[%clk 0:00:11]}  Nc4 {[%clk 0:00:15]} 56. Ra6 {[%clk 0:00:11]}  Nd2 {[%clk 0:00:14]} 57. f3 {[%clk 0:00:11]}  Nb3 {[%clk 0:00:13]} 58. Kf2 {[%clk 0:00:11]}  Nd4 {[%clk 0:00:11]} 59. Ra4 {[%clk 0:00:11]}  Nc6 {[%clk 0:00:10]} 60. g4+ {[%clk 0:00:11]}  hxg4 {[%clk 0:00:10]} 61. fxg4+ {[%clk 0:00:12]}  Ke5 {[%clk 0:00:10]} 62. Ke3 {[%clk 0:00:13]}  Ne7 {[%clk 0:00:10]} 63. Ra5+ {[%clk 0:00:13]}  Kf6 {[%clk 0:00:10]} 64. Ra6+ {[%clk 0:00:13]}  Ke5 {[%clk 0:00:11]} 65. Kf3 {[%clk 0:00:14]}  Kd5 {[%clk 0:00:03]} 66. Kf4 {[%clk 0:00:15]} 1-0


[Site "https://www.chess.com"]

[Event "Titled Tuesday Blitz June 22 2021"]
[White "Onyshchuk, Volodymyr"]
[Black "Mamedyarov, Shakhriyar"]
[WhiteFideId "14114038"]
[BlackFideId "13401319"]
[WhiteElo "2603"]
[BlackElo "2716"]
[Result "1-0"]
[Round "04"]
[TimeControl "180+1"]
[Date "2021.06.22"]
[WhiteClock "0:00:19"]
[BlackClock "0:00:13"]

1. e4 {[%clk 0:03:00]}  e5 {[%clk 0:02:55]} 2. Nf3 {[%clk 0:03:00]}  Nc6 {[%clk 0:02:54]} 3. Bb5 {[%clk 0:02:58]}  g6 {[%clk 0:02:54]} 4. O-O {[%clk 0:02:57]}  Bg7 {[%clk 0:02:54]} 5. Re1 {[%clk 0:02:54]}  a6 {[%clk 0:02:52]} 6. Ba4 {[%clk 0:02:53]}  Nge7 {[%clk 0:02:52]} 7. c3 {[%clk 0:02:50]}  O-O {[%clk 0:02:52]} 8. d3 {[%clk 0:02:48]}  d6 {[%clk 0:02:46]} 9. Nbd2 {[%clk 0:02:47]}  h6 {[%clk 0:02:45]} 10. Nf1 {[%clk 0:02:38]}  f5 {[%clk 0:02:44]} 11. Bb3+ {[%clk 0:02:29]}  Kh7 {[%clk 0:02:43]} 12. exf5 {[%clk 0:02:27]}  Nxf5 {[%clk 0:02:35]} 13. h3 {[%clk 0:02:19]}  Nh4 {[%clk 0:02:26]} 14. N1h2 {[%clk 0:02:14]}  Qf6 {[%clk 0:02:21]} 15. Re4 {[%clk 0:02:07]}  Nxf3+ {[%clk 0:02:08]} 16. Nxf3 {[%clk 0:02:07]}  g5 {[%clk 0:01:52]} 17. Qe2 {[%clk 0:01:20]}  Bf5 {[%clk 0:01:46]} 18. Bd5 {[%clk 0:01:15]}  Ne7 {[%clk 0:01:41]} 19. Bxb7 {[%clk 0:01:14]}  Ra7 {[%clk 0:01:41]} 20. Rb4 {[%clk 0:01:13]}  c5 {[%clk 0:01:16]} 21. Rb3 {[%clk 0:01:08]}  d5 {[%clk 0:01:15]} 22. c4 {[%clk 0:01:03]}  Qd6 {[%clk 0:00:46]} 23. Bxd5 {[%clk 0:00:50]}  Nxd5 {[%clk 0:00:47]} 24. cxd5 {[%clk 0:00:50]}  Qxd5 {[%clk 0:00:48]} 25. Be3 {[%clk 0:00:49]}  Rd7 {[%clk 0:00:45]} 26. Ne1 {[%clk 0:00:42]}  e4 {[%clk 0:00:43]} 27. dxe4 {[%clk 0:00:41]}  Bxe4 {[%clk 0:00:44]} 28. Rc1 {[%clk 0:00:40]}  Rc8 {[%clk 0:00:42]} 29. Qxa6 {[%clk 0:00:39]}  Rc6 {[%clk 0:00:42]} 30. Qc4 {[%clk 0:00:38]}  Qf5 {[%clk 0:00:40]} 31. Rb5 {[%clk 0:00:37]}  Bd5 {[%clk 0:00:34]} 32. Qc2 {[%clk 0:00:36]}  Be4 {[%clk 0:00:34]} 33. Qe2 {[%clk 0:00:35]}  Qe6 {[%clk 0:00:27]} 34. Rbxc5 {[%clk 0:00:32]}  Rxc5 {[%clk 0:00:28]} 35. Bxc5 {[%clk 0:00:32]}  Qf5 {[%clk 0:00:19]} 36. b4 {[%clk 0:00:30]}  h5 {[%clk 0:00:20]} 37. Qxh5+ {[%clk 0:00:29]}  Bh6 {[%clk 0:00:20]} 38. Rd1 {[%clk 0:00:25]}  Rf7 {[%clk 0:00:17]} 39. Qg4 {[%clk 0:00:24]}  Qe5 {[%clk 0:00:15]} 40. Rd7 {[%clk 0:00:24]}  Bd5 {[%clk 0:00:15]} 41. Rxf7+ {[%clk 0:00:23]}  Bxf7 {[%clk 0:00:16]} 42. Nf3 {[%clk 0:00:19]}  Qa1+ {[%clk 0:00:14]} 43. Kh2 {[%clk 0:00:20]}  Qf6 {[%clk 0:00:14]} 44. Qe4+ {[%clk 0:00:19]}  Bg6 {[%clk 0:00:13]} 45. Qe7+ {[%clk 0:00:19]} 1-0


[Site "https://www.chess.com"]

[Event "Titled Tuesday Blitz June 22 2021"]
[White "Perez Ponsa, Federico"]
[Black "Ponikarovsky, Alexey"]
[WhiteFideId "117927"]
[BlackFideId "4122887"]
[WhiteElo "2672"]
[BlackElo "1944"]
[Result "1-0"]
[Round "04"]
[TimeControl "180+1"]
[Date "2021.06.22"]
[WhiteClock "0:00:30"]
[BlackClock "0:00:53"]

1. d4 {[%clk 0:02:58]}  d5 {[%clk 0:02:59]} 2. c4 {[%clk 0:02:57]}  e6 {[%clk 0:03:00]} 3. Nf3 {[%clk 0:02:57]}  Nf6 {[%clk 0:03:00]} 4. Nbd2 {[%clk 0:02:56]}  Be7 {[%clk 0:03:00]} 5. g3 {[%clk 0:02:56]}  O-O {[%clk 0:03:01]} 6. Bg2 {[%clk 0:02:57]}  b6 {[%clk 0:03:01]} 7. O-O {[%clk 0:02:57]}  Bb7 {[%clk 0:03:01]} 8. Qc2 {[%clk 0:02:57]}  dxc4 {[%clk 0:03:01]} 9. Nxc4 {[%clk 0:02:55]}  c5 {[%clk 0:03:00]} 10. dxc5 {[%clk 0:02:53]}  Bxc5 {[%clk 0:02:59]} 11. Rd1 {[%clk 0:02:47]}  Qe7 {[%clk 0:02:57]} 12. a3 {[%clk 0:02:46]}  Be4 {[%clk 0:02:56]} 13. Qc3 {[%clk 0:02:36]}  a5 {[%clk 0:02:55]} 14. Bf4 {[%clk 0:02:32]}  Nc6 {[%clk 0:02:51]} 15. Bd6 {[%clk 0:02:14]}  Bxd6 {[%clk 0:02:47]} 16. Nxd6 {[%clk 0:02:15]}  Bd5 {[%clk 0:02:25]} 17. Rxd5 {[%clk 0:02:03]}  exd5 {[%clk 0:02:24]} 18. Qxc6 {[%clk 0:02:03]}  Qxe2 {[%clk 0:02:24]} 19. Qb5 {[%clk 0:01:58]}  Qe6 {[%clk 0:02:20]} 20. Nc4 {[%clk 0:01:40]}  dxc4 {[%clk 0:02:18]} 21. Ng5 {[%clk 0:01:40]}  Qd6 {[%clk 0:02:09]} 22. Bxa8 {[%clk 0:01:37]}  Rxa8 {[%clk 0:02:10]} 23. Qxc4 {[%clk 0:01:37]}  Qe7 {[%clk 0:02:05]} 24. Rc1 {[%clk 0:01:35]}  h6 {[%clk 0:02:02]} 25. Nf3 {[%clk 0:01:34]}  Rb8 {[%clk 0:01:56]} 26. Qc7 {[%clk 0:01:32]}  Qe8 {[%clk 0:01:52]} 27. Re1 {[%clk 0:01:29]}  Qf8 {[%clk 0:01:51]} 28. Kg2 {[%clk 0:01:25]}  Nd5 {[%clk 0:01:46]} 29. Qc6 {[%clk 0:01:21]}  Nf6 {[%clk 0:01:44]} 30. h3 {[%clk 0:01:16]}  b5 {[%clk 0:01:44]} 31. Re5 {[%clk 0:01:15]}  b4 {[%clk 0:01:37]} 32. Rxa5 {[%clk 0:01:12]}  bxa3 {[%clk 0:01:37]} 33. bxa3 {[%clk 0:01:12]}  Rc8 {[%clk 0:01:36]} 34. Qb7 {[%clk 0:01:03]}  Rb8 {[%clk 0:01:35]} 35. Qa7 {[%clk 0:00:58]}  Ne4 {[%clk 0:01:32]} 36. Qe3 {[%clk 0:00:55]}  Nf6 {[%clk 0:01:23]} 37. Ra7 {[%clk 0:00:49]}  Ra8 {[%clk 0:01:21]} 38. a4 {[%clk 0:00:46]}  Rxa7 {[%clk 0:01:19]} 39. Qxa7 {[%clk 0:00:47]}  Qb4 {[%clk 0:01:17]} 40. a5 {[%clk 0:00:44]}  Ne4 {[%clk 0:01:05]} 41. a6 {[%clk 0:00:41]}  Kh7 {[%clk 0:01:02]} 42. Qxf7 {[%clk 0:00:40]}  Nf6 {[%clk 0:00:59]} 43. Qb7 {[%clk 0:00:31]}  Qc5 {[%clk 0:00:53]} 44. a7 {[%clk 0:00:30]} 1-0


[Site "https://www.chess.com"]

[Event "Titled Tuesday Blitz June 22 2021"]
[White "Svane, Frederik"]
[Black "Makhnev, Denis"]
[WhiteFideId "12923044"]
[BlackFideId "13707647"]
[WhiteElo "2459"]
[BlackElo "2549"]
[Result "0-1"]
[Round "04"]
[TimeControl "180+1"]
[Date "2021.06.22"]
[WhiteClock "0:00:04"]
[BlackClock "0:00:34"]

1. e4 {[%clk 0:03:00]}  c6 {[%clk 0:02:59]} 2. Nf3 {[%clk 0:03:01]}  d5 {[%clk 0:03:00]} 3. exd5 {[%clk 0:03:02]}  cxd5 {[%clk 0:02:59]} 4. d4 {[%clk 0:03:02]}  Bg4 {[%clk 0:02:58]} 5. c3 {[%clk 0:02:58]}  Bxf3 {[%clk 0:02:57]} 6. Qxf3 {[%clk 0:02:59]}  Nc6 {[%clk 0:02:57]} 7. Bd3 {[%clk 0:02:58]}  Nf6 {[%clk 0:02:57]} 8. O-O {[%clk 0:02:58]}  e6 {[%clk 0:02:56]} 9. Re1 {[%clk 0:02:54]}  Be7 {[%clk 0:02:56]} 10. Bf4 {[%clk 0:02:46]}  O-O {[%clk 0:02:55]} 11. Nd2 {[%clk 0:02:47]}  Rc8 {[%clk 0:02:42]} 12. Qh3 {[%clk 0:02:45]}  g6 {[%clk 0:02:38]} 13. Nf3 {[%clk 0:02:32]}  Re8 {[%clk 0:02:38]} 14. Ng5 {[%clk 0:02:25]}  Nh5 {[%clk 0:02:27]} 15. Nxh7 {[%clk 0:01:01]}  Nxf4 {[%clk 0:02:22]} 16. Qh6 {[%clk 0:01:01]}  Nxd3 {[%clk 0:01:46]} 17. Re3 {[%clk 0:01:02]}  Bf6 {[%clk 0:01:39]} 18. Rxd3 {[%clk 0:00:49]}  Bg7 {[%clk 0:01:38]} 19. Qf4 {[%clk 0:00:46]}  e5 {[%clk 0:01:29]} 20. dxe5 {[%clk 0:00:47]}  Nxe5 {[%clk 0:01:29]} 21. Rh3 {[%clk 0:00:47]}  Rc4 {[%clk 0:01:16]} 22. Qd2 {[%clk 0:00:33]}  Rg4 {[%clk 0:01:11]} 23. Rd1 {[%clk 0:00:26]}  Nc4 {[%clk 0:01:00]} 24. Qc2 {[%clk 0:00:19]}  Qe7 {[%clk 0:00:57]} 25. Kf1 {[%clk 0:00:15]}  Re4 {[%clk 0:00:54]} 26. Qc1 {[%clk 0:00:14]}  Nxb2 {[%clk 0:00:47]} 27. Ng5 {[%clk 0:00:08]}  Nxd1 {[%clk 0:00:45]} 28. Nxe4 {[%clk 0:00:08]}  Qxe4 {[%clk 0:00:41]} 29. Qxd1 {[%clk 0:00:08]}  Qc4+ {[%clk 0:00:40]} 30. Kg1 {[%clk 0:00:09]}  Bxc3 {[%clk 0:00:38]} 31. Re3 {[%clk 0:00:04]}  Rxe3 {[%clk 0:00:37]} 32. fxe3 {[%clk 0:00:05]}  d4 {[%clk 0:00:37]} 33. h3 {[%clk 0:00:03]}  dxe3 {[%clk 0:00:36]} 34. Qd8+ {[%clk 0:00:04]}  Kg7 {[%clk 0:00:35]} 35. Qh4 {[%clk 0:00:04]}  Qxh4 {[%clk 0:00:34]} 0-1


[Site "https://www.chess.com"]

[Event "Titled Tuesday Blitz June 22 2021"]
[White "Tsaruk, Maksim"]
[Black "Visakh N R"]
[WhiteFideId "13511173"]
[BlackFideId "25012223"]
[WhiteElo "2197"]
[BlackElo "2428"]
[Result "1/2-1/2"]
[Round "04"]
[TimeControl "180+1"]
[Date "2021.06.22"]
[WhiteClock "0:00:06"]
[BlackClock "0:00:07"]

1. e4 {[%clk 0:03:00]}  c5 {[%clk 0:02:56]} 2. Nf3 {[%clk 0:02:59]}  Nc6 {[%clk 0:02:56]} 3. d4 {[%clk 0:02:59]}  cxd4 {[%clk 0:02:56]} 4. Nxd4 {[%clk 0:03:00]}  Nf6 {[%clk 0:02:57]} 5. Nc3 {[%clk 0:02:58]}  e5 {[%clk 0:02:57]} 6. Ndb5 {[%clk 0:02:56]}  d6 {[%clk 0:02:57]} 7. Bg5 {[%clk 0:02:56]}  a6 {[%clk 0:02:57]} 8. Na3 {[%clk 0:02:57]}  b5 {[%clk 0:02:58]} 9. Nd5 {[%clk 0:02:58]}  Be7 {[%clk 0:02:58]} 10. Bxf6 {[%clk 0:02:58]}  Bxf6 {[%clk 0:02:58]} 11. c3 {[%clk 0:02:59]}  O-O {[%clk 0:02:58]} 12. Nc2 {[%clk 0:03:00]}  Bg5 {[%clk 0:02:51]} 13. a4 {[%clk 0:02:58]}  bxa4 {[%clk 0:02:52]} 14. Rxa4 {[%clk 0:02:59]}  a5 {[%clk 0:02:52]} 15. Bc4 {[%clk 0:02:58]}  Be6 {[%clk 0:02:43]} 16. O-O {[%clk 0:02:55]}  Ne7 {[%clk 0:02:43]} 17. Nxe7+ {[%clk 0:02:39]}  Qxe7 {[%clk 0:02:42]} 18. Bxe6 {[%clk 0:02:37]}  Qxe6 {[%clk 0:02:35]} 19. Na3 {[%clk 0:02:38]}  Rfd8 {[%clk 0:02:28]} 20. Qd5 {[%clk 0:02:03]}  Qxd5 {[%clk 0:01:20]} 21. exd5 {[%clk 0:02:04]}  Rdb8 {[%clk 0:01:14]} 22. Nc4 {[%clk 0:02:04]}  Be7 {[%clk 0:01:13]} 23. Rfa1 {[%clk 0:02:02]}  Bd8 {[%clk 0:01:12]} 24. g3 {[%clk 0:01:25]}  Bc7 {[%clk 0:01:06]} 25. b4 {[%clk 0:01:22]}  Rb5 {[%clk 0:01:05]} 26. Nxa5 {[%clk 0:01:17]}  Rxd5 {[%clk 0:01:01]} 27. Nc4 {[%clk 0:01:09]}  Rf8 {[%clk 0:00:29]} 28. Ra7 {[%clk 0:01:04]}  Bd8 {[%clk 0:00:28]} 29. Rd7 {[%clk 0:00:57]}  Rd3 {[%clk 0:00:27]} 30. Ra3 {[%clk 0:00:58]}  h5 {[%clk 0:00:26]} 31. Rxd6 {[%clk 0:00:41]}  e4 {[%clk 0:00:21]} 32. b5 {[%clk 0:00:09]}  Be7 {[%clk 0:00:17]} 33. Rxd3 {[%clk 0:00:09]}  exd3 {[%clk 0:00:18]} 34. Ra7 {[%clk 0:00:09]}  Bf6 {[%clk 0:00:17]} 35. Rd7 {[%clk 0:00:09]}  Rc8 {[%clk 0:00:16]} 36. Ne3 {[%clk 0:00:02]}  Rxc3 {[%clk 0:00:16]} 37. Kg2 {[%clk 0:00:02]}  Rb3 {[%clk 0:00:15]} 38. Nd5 {[%clk 0:00:02]}  Be5 {[%clk 0:00:14]} 39. f4 {[%clk 0:00:02]}  Bf6 {[%clk 0:00:09]} 40. Nxf6+ {[%clk 0:00:02]}  gxf6 {[%clk 0:00:10]} 41. Kf3 {[%clk 0:00:03]}  Rxb5 {[%clk 0:00:07]} 42. Rxd3 {[%clk 0:00:03]}  Kg7 {[%clk 0:00:07]} 43. h3 {[%clk 0:00:03]}  Ra5 {[%clk 0:00:07]} 44. g4 {[%clk 0:00:04]}  hxg4+ {[%clk 0:00:07]} 45. hxg4 {[%clk 0:00:05]}  f5 {[%clk 0:00:08]} 46. gxf5 {[%clk 0:00:05]}  Rxf5 {[%clk 0:00:07]} 47. Ke4 {[%clk 0:00:06]}  Ra5 {[%clk 0:00:07]} 48. Rg3+ {[%clk 0:00:06]}  Kf6 {[%clk 0:00:07]} 1/2-1/2


[Site "https://www.chess.com"]